[Event "27th CRO-chT 1B-Men 2018"]
[Site "Biograd"]
[Date "2018.09.17"]
[Round "1"]
[White "Bobanac, Miro"]
[Black "Zelic, Mladen"]
[Result "1-0"]
[ECO "A04"]
[WhiteElo "2288"]
[BlackElo "2266"]
[Annotator "ChessBase"]
[PlyCount "41"]
[EventDate "2018.09.15"]
[EventType "team-tourn"]
[EventCountry "CRO"]
[SourceTitle "playchess.com"]
[Source "ChessBase"]
[SourceQuality "1"]
[TimeControl "40/5400+30:1800+30"]

1. Nf3 f5 2. d3 Nf6 3. e4 d6 4. Nc3 Nc6 5. Bg5 e5 6. d4 fxe4 7. dxe5 exf3 8. exf6 gxf6 9. Be3 Bf5 10. Qxf3 Qd7 11. Bb5 Bg7 12. Nd5 O-O {[%clk} 13. Bxc6 bxc6 {]%} 14. Qxf5 {]%} Qf7 {]%} 15. Nf4 {]%} Rfe8 {]%} 16. O-O {[%clk} Rab8 17. b3 {]]c} Rb5 {]]c} 18. Qd3 {]]} Rg5 {]]} 19. Rae1 {]]} Kh8 {]]} 20. Bd4 {]]} Rg8 {]]} 21. g3 {[%emt 1:17:30] [%clk:} 1-0

[Event "27th CRO-chT 1B-Men 2018"]
[Site "Biograd"]
[Date "2018.09.17"]
[Round "1"]
[White "Jusic, Zdenko"]
[Black "Brulic, Denis"]
[Result "1-0"]
[ECO "B27"]
[WhiteElo "2261"]
[BlackElo "2232"]
[Annotator "ChessBase"]
[PlyCount "95"]
[EventDate "2018.09.15"]
[EventType "team-tourn"]
[EventCountry "CRO"]
[SourceTitle "playchess.com"]
[Source "ChessBase"]
[SourceQuality "1"]
[TimeControl "40/5400+30:1800+30"]

1. e4 c5 2. Nf3 g6 3. c3 Bg7 4. d4 cxd4 5. cxd4 d5 6. e5 Nc6 7. h3 e6 8. Nc3 Nge7 9. g4 f6 10. exf6 Bxf6 11. Be3 O-O 12. Bg2 Qd6 13. O-O Bd7 14. Qd2 Bg7 15. Rfe1 Kh8 16. Bh6 Rf7 17. Bxg7+ Kxg7 18. Re3 Raf8 19. Ne2 h6 20. Ng3 Rf4 21. a3 Qc7 22. b4 Qb6 23. Ne2 R4f6 24. Rc1 Nc8 25. Rc5 Nd6 26. Ne5 Be8 27. f4 a6 28. Qe1 Nb5 29. Nxc6 Bxc6 30. Qh4 Qd8 31. g5 hxg5 32. fxg5 R6f7 33. Qh6+ Kg8 34. Qxg6+ Kh8 35. Qh5+ Rh7 36. Qg4 Bd7 37. Qg3 Rf5 38. h4 b6 39. Rc1 e5 40. Rxe5 Re7 41. Nf4 Rexe5 42. dxe5 Nd4 43. Re1 b5 44. e6 Be8 45. Kh2 Nc2 46. Bh3 Rxf4 47. Qxf4 Nxe1 48. Qf8+ 1-0

[Event "27th CRO-chT 1B-Men 2018"]
[Site "Biograd"]
[Date "2018.09.15"]
[Round "1.5"]
[White "Vujakovic, Branko"]
[Black "Trbojevic, Mladen"]
[Result "1-0"]
[ECO "C84"]
[WhiteElo "2340"]
[BlackElo "2353"]
[Annotator "ChessBase"]
[PlyCount "33"]
[EventDate "2018.09.15"]
[EventType "team-tourn"]
[EventCountry "CRO"]
[SourceTitle "playchess.com"]
[Source "ChessBase"]
[SourceQuality "1"]
[TimeControl "40/5400+30:1800+30"]

1. e4 {[%emt 0:03:30]} e5 {[%emt 0:00:30]} 2. Nf3 {[%emt 0:00:30]} Nc6 {[%emt 0:00:30]} 3. Bb5 {[%emt 0:00:30]} a6 {[%emt 0:00:30]} 4. Ba4 {[%emt 0:00:00]} Nf6 {[%emt 0:00:00]} 5. d4 {[%emt 0:01:00]} exd4 {[%emt 0:01:00]} 6. O-O {[%emt 0:00:30]} Be7 {[%emt 0:00:30]} 7. e5 {[%emt 0:00:30]} Ne4 {[%emt 0:00:30]} 8. Nxd4 {[%emt 0:00:00]} O-O {[%emt 0:03:30]} 9. Re1 {[%emt 0:06:00]} Nxd4 {[%emt 0:04:30]} 10. Qxd4 {[%emt 0:00:30]} Nc5 {[%emt 0:00:30]} 11. Nc3 {[%emt 0:00:30]} Nxa4 {[%emt 0:03:30]} 12. Qxa4 {[%emt 0:00:30]} d5 {[%emt 0:02:30]} 13. exd6 {[%emt 0:03:30]} Bxd6 {[%emt 0:01:30]} 14. Bf4 {[%emt 0:02:30]} Bf5 {[%emt 0:25:30]} 15. Bxd6 {[%emt 0:22:30]} Qxd6 {[%emt 0:31:30]} 16. Rad1 {[%emt 0:00:30]} Bd7 {[%emt 0:07:29]} 17. Qxd7 {[%emt 0:00:30]} 1-0

[Event "27th CRO-chT 1B-Men 2018"]
[Site "Biograd"]
[Date "2018.09.15"]
[Round "1.6"]
[White "Horvat, David"]
[Black "Blazeka, Matej"]
[Result "0-1"]
[ECO "C42"]
[WhiteElo "2212"]
[BlackElo "2354"]
[Annotator "NA"]
[PlyCount "96"]
[EventDate "2018.09.15"]
[EventType "team-tourn"]
[EventCountry "CRO"]
[SourceTitle "playchess.com"]
[Source "ChessBase"]
[SourceQuality "1"]
[TimeControl "40/5400+30:1800+30"]

1. e4 {[%emt 0:00:30]} e5 {[%emt 0:00:30]} 2. Nf3 {[%emt 0:00:30]} Nf6 {[%emt 0:00:00]} 3. Nxe5 {[%emt 0:00:30]} d6 {[%emt 0:00:00]} 4. Nf3 {[%emt 0:00:30]} Nxe4 {[%emt 0:00:30]} 5. Nc3 {[%emt 0:00:00]} Nxc3 {[%emt 0:00:30]} 6. dxc3 {[%emt 0:00:00]} Be7 {[%emt 0:00:30]} 7. Be3 {[%emt 0:00:30]} O-O {[%emt 0:00:30]} 8. Qd2 {[%emt 0:00:30] C42: Petroff Defence: 3 Nxe5 and unusual White 3rd moves} Nd7 {[%emt 0:00:30]} 9. O-O-O {[%emt 0:00:30]} b6 {[%emt 0:02:30]} (9... c6 10. h4 d5 11. Kb1 Nf6 12. Bd3 Re8 13. Ng5 h6 14. f3 c5 15. g4 c4 {1-0 (28) Aronian,L (2767)-Anand,V (2768) Saint Louis 2018}) 10. h4 {[%emt 0:10:30]} Bb7 {[%emt 0:02:30]} 11. h5 {[%emt 0:06:30]} Nc5 {[%emt 0:01:30]} 12. Nd4 $146 {[%emt 0:11:30]} ({Predecessor:} 12. Kb1 Bf6 13. h6 g6 14. Ng5 Re8 15. f4 d5 {1-0 (42) Sargsyan,S (2472)-Martirosyan,G (2145) Yerevan 2018}) 12... Ne4 {[%emt 0:00:30]} 13. Qe1 {[%emt 0:03:30]} Bg5 {[%emt 0:26:30]} 14. f4 {[%emt 0:12:30]} Bf6 {[%emt 0:00:30]} 15. Bb5 {[%emt 0:17:30]} Qc8 {[%emt 0:20:30]} 16. h6 {[%emt 0:09:30]} g6 {[%emt 0:00:30]} 17. g4 {[%emt 0:04:42]} c5 {[%emt 0:03:30]} 18. Ne2 {[%emt 0:03:11]} Qxg4 {[%emt 0:01:30]} 19. Kb1 {[%emt 0:07:01]} a6 {[%emt 0:16:30]} 20. Bd3 {[%emt 0:02:32]} Rfe8 {[%emt 0:02:31]} 21. Bc1 {[%emt 0:04:11]} d5 {[%emt 0:13:29]} 22. Qf1 {[%emt 0:01:34]} c4 {[%emt 0:02:51]} 23. Rg1 {[%emt 0:01:55]} cxd3 {[%emt 0:01:45]} 24. Rxg4 {[%emt 0:01:01]} dxe2 {[%emt 0:00:09]} 25. Qg1 {[%emt 0:00:33]} exd1=Q {[%emt 0:00:27]} 26. Qxd1 {[%emt 0:00:12]} Nf2 {[%emt 0:00:18]} 27. Qg1 {[%emt 0:00:33]} Nxg4 {[%emt 0:00:14]} 28. Qxg4 {[%emt 0:00:02]} Bc8 {[%emt 0:01:31]} 29. Qg1 {[%emt 0:00:22]} b5 {[%emt 0:01:11]} 30. a3 {[%emt 0:01:15]} Bf5 {[%emt 0:00:12]} 31. Be3 {[%emt 0:00:37]} Re4 {[%emt 0:00:23]} 32. Bd4 {[%emt 0:00:13]} Rae8 {[%emt 0:00:54]} 33. Ka2 {[%emt 0:00:39]} Bxd4 {[%emt 0:01:03]} 34. cxd4 {[%emt 0:00:02]} f6 {[%emt 0:00:00]} 35. Qg2 {[%emt 0:00:17]} Rxd4 {[%emt 0:00:29]} 36. Qf2 {[%emt 0:00:18]} Rde4 {[%emt 0:00:29]} 37. Qa7 {[%emt 0:00:26]} R4e7 {[%emt 0:00:32]} 38. Qxa6 {[%emt 0:00:06]} Bxc2 {[%emt 0:00:29]} 39. Qxb5 {[%emt 0:00:28]} Bf5 {[%emt 0:00:25]} 40. Qb6 {[%emt 0:00:00]} Be6 {[%emt 0:00:00]} 41. Qd4 {[%emt 0:06:20]} Kf7 {[%emt 0:03:38]} 42. a4 {[%emt 0:08:44]} Rb7 {[%emt 0:00:30]} 43. b4 {[%emt 0:09:09]} Rc8 {[%emt 0:01:30]} 44. f5 {[%emt 0:02:34]} gxf5 {[%emt 0:02:30]} 45. b5 {[%emt 0:02:29]} Rc4 {[%emt 0:00:30]} 46. Qg1 {[%emt 0:00:27]} Rxa4+ {[%emt 0:04:30]} 47. Kb3 {[%emt 0:02:30]} Rg4 {[%emt 0:00:00]} 48. Qc5 {[%emt 0:01:10]} Rc4 {[%emt 0:01:00]} 0-1

[Event "27th CRO-chT 1B-Men 2018"]
[Site "Biograd"]
[Date "2018.09.15"]
[Round "1.9"]
[White "Muha, Miljenko"]
[Black "Dabo-Peranic, Robert"]
[Result "0-1"]
[ECO "A09"]
[WhiteElo "2364"]
[BlackElo "2284"]
[Annotator "ChessBase"]
[PlyCount "86"]
[EventDate "2018.09.15"]
[EventType "team-tourn"]
[EventCountry "CRO"]
[SourceTitle "playchess.com"]
[Source "ChessBase"]
[SourceQuality "1"]
[TimeControl "40/5400+30:1800+30"]

1. Nf3 {[%emt 0:00:30]} d5 {[%emt 0:01:30]} 2. c4 {[%emt 0:00:30]} d4 {[%emt 0:00:00]} 3. g3 {[%emt 0:03:30]} Nc6 {[%emt 0:00:00]} 4. Bg2 {[%emt 0:01:30]} e5 {[%emt 0:00:30]} 5. d3 {[%emt 0:00:30]} Bb4+ {[%emt 0:00:30]} 6. Bd2 {[%emt 0:03:30]} a5 {[%emt 0:00:00]} 7. O-O {[%emt 0:00:30]} Bxd2 {[%emt 0:00:00]} 8. Nbxd2 {[%emt 0:01:30]} Nf6 {[%emt 0:00:00]} 9. a3 {[%emt 0:10:30]} a4 {[%emt 0:00:00]} 10. b4 {[%emt 0:07:30]} axb3 {[%emt 0:00:00]} 11. Qxb3 {[%emt 0:00:00]} O-O {[%emt 0:05:00]} 12. Rfe1 {[%emt 0:17:00]} Nd7 {[%emt 0:01:30]} 13. Qb2 {[%emt 0:06:30]} Nc5 {[%emt 0:00:00]} 14. Nb3 {[%emt 0:03:30]} Nxb3 {[%emt 0:29:00]} 15. Qxb3 {[%emt 0:00:00]} Ra7 {[%emt 0:00:30]} 16. Qb2 {[%emt 0:04:00]} Qd6 {[%emt 0:06:30]} 17. Ng5 {[%emt 0:11:30]} Bf5 {[%emt 0:00:30]} 18. Ne4 {[%emt 0:01:30]} Bxe4 {[%emt 0:04:30]} 19. Bxe4 {[%emt 0:00:00]} Nd8 {[%emt 0:12:30]} 20. e3 {[%emt 0:12:56]} Ne6 {[%emt 0:00:30]} 21. f4 {[%emt 0:03:56]} exf4 {[%emt 0:06:30]} 22. exf4 {[%emt 0:00:13]} Nc5 {[%emt 0:00:30]} 23. Qe2 {[%emt 0:03:34]} c6 {[%emt 0:07:30]} 24. Bg2 {[%emt 0:04:26]} Rfa8 {[%emt 0:04:30]} 25. Bf1 {[%emt 0:02:07]} h6 {[%emt 0:02:36]} 26. Qb2 {[%emt 0:00:38]} g6 {[%emt 0:03:58]} 27. Re5 {[%emt 0:00:38]} Ra4 {[%emt 0:06:29]} 28. Rae1 {[%emt 0:00:58]} Rxa3 {[%emt 0:02:53]} 29. Qb4 {[%emt 0:00:00]} R3a5 {[%emt 0:00:28]} 30. Re8+ {[%emt 0:00:38]} Kg7 {[%emt 0:00:09]} 31. Rxa8 {[%emt 0:00:43]} Rxa8 {[%emt 0:00:03]} 32. Re5 {[%emt 0:00:13]} b6 {[%emt 0:03:22]} 33. Qxb6 {[%emt 0:00:07]} Nd7 {[%emt 0:00:08]} 34. Qb7 {[%emt 0:01:20]} Rb8 {[%emt 0:01:17]} 35. c5 {[%emt 0:00:25]} Qxe5 {[%emt 0:00:33]} 36. Qxd7 {[%emt 0:00:05]} Qe3+ {[%emt 0:00:06]} 37. Kg2 {[%emt 0:00:20]} Rb2+ {[%emt 0:00:15]} 38. Kh3 {[%emt 0:00:20]} Qf2 {[%emt 0:00:05]} 39. Kg4 {[%emt 0:00:32]} Qxh2 {[%emt 0:01:14]} 40. Qxd4+ {[%emt 0:00:00]} Kh7 {[%emt 0:00:00]} 41. Kf3 {[%emt 0:04:21]} Qh1+ {[%emt 0:09:54]} 42. Ke3 {[%emt 0:00:30]} Rb7 {[%emt 0:01:30]} 43. Kf2 {[%emt 0:00:30]} Rb1 {[%emt 0:00:30]} 0-1

[Event "27th CRO-chT 1B-Men 2018"]
[Site "Biograd"]
[Date "2018.09.15"]
[Round "1.10"]
[White "Martic, Zlatko"]
[Black "Ivic, Mateo"]
[Result "1-0"]
[ECO "E71"]
[WhiteElo "2244"]
[BlackElo "2223"]
[Annotator "NA"]
[PlyCount "49"]
[EventDate "2018.09.15"]
[EventType "team-tourn"]
[EventCountry "CRO"]
[SourceTitle "playchess.com"]
[Source "ChessBase"]
[SourceQuality "1"]
[TimeControl "40/5400+30:1800+30"]

1. d4 {[%emt 0:01:30]} Nf6 {[%emt 0:00:30]} 2. c4 {[%emt 0:00:30]} g6 {[%emt 0:00:30]} 3. Nc3 {[%emt 0:00:30]} Bg7 {[%emt 0:00:30]} 4. e4 {[%emt 0:00:30]} d6 {[%emt 0:00:30]} 5. h3 {[%emt 0:01:30]} O-O {[%emt 0:00:30]} 6. Be3 {[%emt 0:00:30]} c5 {[%emt 0:03:30]} 7. dxc5 {[%emt 0:01:30]} Qa5 {[%emt 0:03:30]} 8. Bd3 {[%emt 0:04:30]} dxc5 {[%emt 0:00:30]} 9. e5 {[%emt 0:08:30]} Nfd7 {[%emt 0:09:30]} 10. f4 {[%emt 0:00:30]} Nb6 {[%emt 0:04:30]} 11. Bd2 {[%emt 0:07:30]} N6d7 {[%emt 0:09:30]} 12. Nf3 {[%emt 0:00:30]} Nc6 {[%emt 0:00:30]} 13. O-O {[%emt 0:06:30]} Qd8 {[%emt 0:04:30]} 14. Be3 {[%emt 0:08:30]} Qa5 {[%emt 0:01:30]} 15. Qe2 {[%emt 0:03:30]} Rd8 {[%emt 0:07:30]} 16. Bd2 {[%emt 0:02:30]} e6 {[%emt 0:17:30]} 17. Ng5 {[%emt 0:16:30]} Qb6 {[%emt 0:04:30]} 18. b3 {[%emt 0:06:30]} a6 {[%emt 0:05:30]} 19. Rad1 {[%emt 0:01:30]} Qc7 {[%emt 0:00:30]} 20. Nce4 {[%emt 0:00:30]} Ndxe5 {[%emt 0:05:15]} 21. fxe5 {[%emt 0:00:30]} Nxe5 {[%emt 0:00:13]} 22. Bf4 {[%emt 0:03:30]} f5 {[%emt 0:02:26]} 23. Nf2 {[%emt 0:15:44]} h6 {[%emt 0:00:46]} 24. Nxe6 {[%emt 0:00:38]} Bxe6 {[%emt 0:00:16]} 25. Rfe1 {[%emt 0:00:12]} 1-0

[Event "27th CRO-chT 1B-Men 2018"]
[Site "Biograd"]
[Date "2018.09.15"]
[Round "1.12"]
[White "Matanovic, Luka"]
[Black "Curic, Drazen"]
[Result "1-0"]
[ECO "B03"]
[WhiteElo "2252"]
[BlackElo "2133"]
[Annotator "NA"]
[PlyCount "73"]
[EventDate "2018.09.15"]
[EventType "team-tourn"]
[EventCountry "CRO"]
[SourceTitle "playchess.com"]
[Source "ChessBase"]
[SourceQuality "1"]
[TimeControl "40/5400+30:1800+30"]

1. e4 {[%emt 0:00:30]} Nf6 {[%emt 0:00:30]} 2. e5 {[%emt 0:00:00]} Nd5 {[%emt 0:00:00]} 3. d4 {[%emt 0:00:00]} d6 {[%emt 0:00:00]} 4. c4 {[%emt 0:00:30]} Nb6 {[%emt 0:00:30]} 5. exd6 {[%emt 0:00:30]} cxd6 {[%emt 0:01:30]} 6. Nc3 {[%emt 0:00:30]} g6 {[%emt 0:00:00]} 7. Be3 {[%emt 0:02:30]} Bg7 {[%emt 0:00:00]} 8. Rc1 {[%emt 0:01:30]} O-O {[%emt 0:02:30]} 9. b3 {[%emt 0:00:30]} Nc6 {[%emt 0:03:30]} 10. d5 {[%emt 0:01:30]} Ne5 {[%emt 0:05:30]} 11. Be2 {[%emt 0:00:30]} f5 {[%emt 0:01:30]} 12. Nf3 {[%emt 0:05:30]} Nxf3+ {[%emt 0:00:30]} 13. Bxf3 {[%emt 0:00:00]} Nd7 {[%emt 0:00:30]} 14. O-O {[%emt 0:07:00]} Ne5 {[%emt 0:00:30]} 15. Nb5 {[%emt 0:03:30]} f4 {[%emt 0:00:30]} 16. Bxa7 {[%emt 0:28:30]} Bd7 {[%emt 0:26:30]} 17. Bd4 {[%emt 0:04:30]} Bxb5 {[%emt 0:01:30]} 18. cxb5 {[%emt 0:03:30]} Nxf3+ {[%emt 0:00:30]} 19. gxf3 {[%emt 0:00:30]} Rf5 {[%emt 0:03:30]} 20. Bxg7 {[%emt 0:02:30]} Kxg7 {[%emt 0:00:00]} 21. Qd4+ {[%emt 0:00:30]} Kh6 {[%emt 0:00:00]} 22. a4 {[%emt 0:11:30]} e5 {[%emt 0:13:30]} 23. dxe6 {[%emt 0:01:30]} Qh4 {[%emt 0:00:30]} 24. Rc7 {[%emt 0:02:30]} Re5 {[%emt 0:00:30]} 25. Rf7 {[%emt 0:01:30]} Rf8 {[%emt 0:00:30]} 26. Kh1 {[%emt 0:08:18]} Rxf7 {[%emt 0:08:30]} 27. exf7 {[%emt 0:00:09]} Rf5 {[%emt 0:00:30]} 28. Rg1 {[%emt 0:08:18]} Rxf7 {[%emt 0:01:30]} 29. Rg4 {[%emt 0:01:04]} Qh3 {[%emt 0:00:30]} 30. Qd1 {[%emt 0:00:47]} Rf5 {[%emt 0:01:30]} 31. Kg1 {[%emt 0:01:10]} Rh5 {[%emt 0:02:30]} 32. Qxd6 {[%emt 0:01:14]} Qxh2+ {[%emt 0:00:30]} 33. Kf1 {[%emt 0:00:09]} Rf5 {[%emt 0:00:30]} 34. Qe7 {[%emt 0:01:08]} Qh1+ {[%emt 0:05:30]} 35. Ke2 {[%emt 0:00:05]} Qa1 {[%emt 0:00:30]} 36. Rh4+ {[%emt 0:00:26]} Rh5 {[%emt 0:00:30]} 37. Qf8+ {[%emt 0:00:11]} 1-0

[Event "27th CRO-chT 1B-Men 2018"]
[Site "Biograd"]
[Date "2018.09.15"]
[Round "1.16"]
[White "Mathe, Gaspar"]
[Black "Vlaic, Branko"]
[Result "*"]
[ECO "B12"]
[WhiteElo "2308"]
[BlackElo "2246"]
[Annotator "NA"]
[PlyCount "74"]
[EventDate "2018.09.15"]
[EventType "team-tourn"]
[EventCountry "CRO"]
[SourceTitle "playchess.com"]
[Source "ChessBase"]
[SourceQuality "1"]
[TimeControl "40/5400+30:1800+30"]

1. e4 {[%emt 0:00:30] ]} c6 {[%emt 0:00:30] ]} 2. d4 {[%emt 0:00:30] ]} d5 {[%emt 0:00:00] ]} 3. e5 {[%emt 0:00:30] ]} c5 {[%emt 0:00:00] ]} 4. c3 {[%emt 0:01:30] ]} Nc6 {[%emt 0:00:30] ]} 5. Ne2 {[%emt 0:01:30] ]} Bg4 {[%emt 0:01:30] ] B12: Caro-Kann: Advance Variation} 6. Be3 {[%emt 0:02:30] ]} (6. h3 Bxe2 7. Bxe2 e6 8. O-O Qb6 9. dxc5 Bxc5 10. b4 Be7 11. Be3 Qc7 12. f4 Nh6 13. Na3 {½-½ (44) Vachier Lagrave,M (2795)-Anand,V (2786) Stavanger 2017}) 6... e6 {[%emt 0:02:30] ]} 7. f3 {[%emt 0:01:30] ]]} cxd4 {[%emt 0:00:30] ]]} 8. cxd4 {[%emt 0:02:30] ]]} Bb4+ {[%emt 0:00:30] ]]} 9. Nbc3 {[%emt 0:00:30] ]]} Bf5 {[%emt 0:01:30] ]]} 10. a3 $146 {[%emt 0:01:30] ]]} ({Predecessor:} 10. g4 Bg6 11. a3 Bxc3+ 12. Nxc3 Nge7 13. Rc1 {1-0 (30) Albers,D (2091)-Bramkamp,R (2115) Dortmund 2011}) 10... Ba5 {[%emt 0:00:30] ]]} 11. Ng3 {[%emt 0:05:30] ]]} Bg6 {[%emt 0:00:30] ]]} 12. Kf2 {[%emt 0:03:30] ]} Nge7 {[%emt 0:01:30] ]]} 13. h4 {[%emt 0:03:30] ]]} h5 {[%emt 0:11:30] ]]} 14. Nce2 {[%emt 0:00:30] ]]} Nf5 {[%emt 0:04:30] ]]} 15. Nxf5 {[%emt 0:01:30] ]]} Bxf5 {[%emt 0:00:30] ]]} 16. Nf4 {[%emt 0:02:30] ]]} Rc8 {[%emt 0:00:30] ]} 17. Bd3 {[%emt 0:07:30] ]} Bxd3 {[%emt 0:03:30] ]} 18. Qxd3 {[%emt 0:00:30] ]]} Bb6 {[%emt 0:00:30] ]]} 19. Rh3 {[%emt 0:02:30] ]]} Ne7 {[%emt 0:00:30] ]]} 20. g4 {[%emt 0:06:30] ]]} hxg4 {[%emt 0:05:30] ]]} 21. fxg4 {[%emt 0:00:30] ]} Qd7 {[%emt 0:00:30] ]]} 22. h5 {[%emt 0:06:30] ]]} Rc6 {[%emt 0:03:30] ]]} 23. h6 $14 {[%emt 0:02:30] ]]} g6 {[%emt 0:02:30] ]]} 24. Ne2 {[%emt 0:00:30] ]]} Qc8 {[%emt 0:00:30] ]]} 25. h7 {[%emt 0:01:30] ]]} g5 {[%emt 0:05:30] ]]} 26. Bxg5 {[%emt 0:00:30] ]]} Ng6 {[%emt 0:00:00] ]]} 27. Be3 {[%emt 0:10:30] ]]} Rc2 {[%emt 0:05:00] ]]} 28. Rh6 {[%emt 0:05:30] ]]} Qc4 {[%emt 0:01:30] ]} 29. Qxc4 {[%emt 0:01:30] ]]} dxc4 {[%emt 0:00:30] ]]} 30. Rc1 {[%emt 0:03:30] ]]} Rxb2 {[%emt 0:00:30] ]]} 31. Rxc4 {[%emt 0:00:30] ]]} Kd7 {[%emt 0:00:30] ]]} 32. Kf3 {[%emt 0:02:30] ]} Nf8 {[%emt 0:00:30] [%clk 0:49] 3]} 33. Rc1 {[%emt 0:03:55] k [%clk 0:18:16] 0} Rxh7 34. Rxh7 {[%emt 0:02:00]} Nxh7 {[%emt 0:08:00]} 35. Rh1 {[%emt 0:00:33]} Nf8 {[%emt 0:00:30]} 36. Nf4 {[%emt 0:00:34]} Rb3 {[%emt 0:00:30]} 37. Ke4 {[%emt 0:00:30]} Bd8 {[%emt 0:00:30]} *

[Event "27th CRO-chT 1B-Men 2018"]
[Site "Biograd"]
[Date "2018.09.15"]
[Round "1.17"]
[White "Malenica, Mario"]
[Black "Vrban, Mladen"]
[Result "*"]
[ECO "A21"]
[WhiteElo "2212"]
[BlackElo "2280"]
[Annotator "NA"]
[PlyCount "36"]
[EventDate "2018.09.15"]
[EventType "team-tourn"]
[EventCountry "CRO"]
[SourceTitle "playchess.com"]
[Source "ChessBase"]
[SourceQuality "1"]
[TimeControl "40/5400+30:1800+30"]

1. c4 {[%emt 0:00:30] .5} f5 {[%emt 0:03:30] .5} 2. Nc3 {[%emt 0:00:30] .5} Nf6 {[%emt 0:00:30] .} 3. Nf3 {[%emt 0:01:30] ..} d6 {[%emt 0:00:00] ..} 4. d3 {[%emt 0:02:30] ..} e5 {[%emt 0:01:00] .} 5. g3 {[%emt 0:01:30] ..} g6 {[%emt 0:05:30] ..} 6. Bg2 {[%emt 0:03:30] ..} Bg7 {[%emt 0:01:30] ..} 7. O-O {[%emt 0:03:30] ..} O-O {[%emt 0:00:30] ..} 8. Bg5 {[%emt 0:04:30] ..} h6 {[%emt 0:00:30] ..} 9. Bxf6 {[%emt 0:00:30] ..} Qxf6 {[%emt 0:00:30] ..} 10. Rb1 {[%emt 0:07:30] .} c6 {[%emt 0:06:30] ..} 11. Nd2 {[%emt 0:03:30] ..} Be6 {[%emt 0:15:30] ..} 12. Na4 {[%emt 0:21:30] ..} Nd7 {[%emt 0:01:30] ..} 13. b4 {[%emt 0:02:30] ..} Rab8 {[%emt 0:02:30] ..} 14. b5 $11 {[%emt 0:09:30] ..} c5 {[%emt 0:08:30] ..} 15. Nc3 {[%emt 0:07:30] ..} Nb6 {[%emt 0:07:30] ..} 16. Nd5 {[%emt 0:03:30] [%clk 0:20] 3 [%clk 0:18:57] [%clk 0:18.27]} Qf7 {[%emt 0:21:30]} 17. Qb3 {[%emt 0:06:08]} Kh7 {[%emt 0:00:30]} 18. a4 {[%emt 0:00:30]} Nc8 {[%emt 0:00:30]} *

[Event "27th CRO-chT 1B-Men 2018"]
[Site "Biograd"]
[Date "2018.09.15"]
[Round "1.18"]
[White "Matijevic, Hrvoje"]
[Black "Grgurevic, Boris"]
[Result "1/2-1/2"]
[ECO "A42"]
[WhiteElo "2228"]
[BlackElo "2145"]
[Annotator "NA"]
[PlyCount "23"]
[EventDate "2018.09.15"]
[EventType "team-tourn"]
[EventCountry "CRO"]
[SourceTitle "playchess.com"]
[Source "ChessBase"]
[SourceQuality "1"]
[TimeControl "40/5400+30:1800+30"]

1. d4 {[%emt 0:00:30]} g6 {[%emt 0:00:30]} 2. c4 {[%emt 0:00:30]} Bg7 {[%emt 0:00:30]} 3. Nc3 {[%emt 0:01:30]} d6 {[%emt 0:00:00]} 4. e4 {[%emt 0:00:30]} Nc6 {[%emt 0:00:00]} 5. Be3 {[%emt 0:07:30]} e5 {[%emt 0:00:30]} 6. d5 {[%emt 0:03:30]} Nd4 {[%emt 0:00:30]} 7. Nge2 {[%emt 0:00:30]} Nxe2 {[%emt 0:05:30]} 8. Bxe2 {[%emt 0:00:30]} Ne7 {[%emt 0:00:30]} 9. Qd2 {[%emt 0:17:30]} f5 {[%emt 0:07:30]} 10. f3 {[%emt 0:01:30]} O-O {[%emt 0:03:30]} 11. O-O-O {[%emt 0:06:30]} Bd7 {[%emt 0:12:30]} 12. c5 {[%emt 0:10:30]} 1/2-1/2

[Event "27th CRO-chT 1B-Men 2018"]
[Site "Biograd"]
[Date "2018.09.15"]
[Round "1.21"]
[White "Maier, Christian"]
[Black "Mufic, Goran"]
[Result "*"]
[ECO "A08"]
[WhiteElo "2357"]
[BlackElo "2254"]
[Annotator "NA"]
[PlyCount "40"]
[EventDate "2018.09.15"]
[EventType "team-tourn"]
[EventCountry "CRO"]
[SourceTitle "playchess.com"]
[Source "ChessBase"]
[SourceQuality "1"]
[TimeControl "40/5400+30:1800+30"]

1. e4 {[%emt 0:00:30]} c5 {[%emt 0:00:30]} 2. Nf3 {[%emt 0:00:00]} g6 {[%emt 0:00:00]} 3. d3 {[%emt 0:04:00]} Bg7 {[%emt 0:00:00]} 4. g3 {[%emt 0:00:30]} Nc6 {[%emt 0:01:30]} 5. Bg2 {[%emt 0:00:30]} e6 {[%emt 0:00:00]} 6. O-O {[%emt 0:01:30]} Nge7 {[%emt 0:00:00]} 7. Re1 {[%emt 0:00:30]} O-O {[%emt 0:00:30]} 8. c3 {[%emt 0:01:30]} d5 {[%emt 0:01:30]} 9. Nbd2 {[%emt 0:03:30]} b6 {[%emt 0:00:30]} 10. exd5 {[%emt 0:14:30]} Nxd5 {[%emt 0:09:30]} 11. Nc4 {[%emt 0:01:30]} Bb7 {[%emt 0:07:30]} 12. Qb3 {[%emt 0:02:30]} Qc7 {[%emt 0:05:30]} 13. a4 {[%emt 0:01:30]} a6 {[%emt 0:00:30]} 14. Ng5 {[%emt 0:08:30]} h6 {[%emt 0:19:30]} 15. Ne4 {[%emt 0:00:30]} Rab8 {[%emt 0:00:30]} 16. Qa3 {[%emt 0:04:30]} Rfd8 {[%emt 0:03:30]} 17. Ne3 {[%emt 0:10:30]} Nxe3 $19 {[%emt 0:05:30]} 18. Rxe3 {[%emt 0:03:30]} Ne5 {[%emt 0:07:30]} 19. a5 {[%emt 0:04:30]} Nxd3 {[%emt 0:01:30]} 20. axb6 {[%emt 0:00:30]} Qxb6 {[%emt 0:00:30]} *

[Event "27th CRO-chT 1B-Men 2018"]
[Site "Biograd"]
[Date "2018.09.15"]
[Round "1.22"]
[White "Doric, Nenad"]
[Black "Stocko, Josip"]
[Result "1/2-1/2"]
[ECO "E46"]
[WhiteElo "2249"]
[BlackElo "2322"]
[Annotator "NA"]
[PlyCount "37"]
[EventDate "2018.09.15"]
[EventType "team-tourn"]
[EventCountry "CRO"]
[SourceTitle "playchess.com"]
[Source "ChessBase"]
[SourceQuality "1"]
[TimeControl "40/5400+30:1800+30"]

1. d4 {[%emt 0:00:30]} Nf6 {[%emt 0:00:30]} 2. c4 {[%emt 0:00:00]} e6 {[%emt 0:00:00]} 3. Nc3 {[%emt 0:00:00]} Bb4 {[%emt 0:00:00]} 4. e3 {[%emt 0:00:30]} O-O {[%emt 0:00:30]} 5. Nge2 {[%emt 0:00:30]} d5 {[%emt 0:00:00]} 6. a3 {[%emt 0:00:30]} Be7 {[%emt 0:00:00]} 7. cxd5 {[%emt 0:01:30]} exd5 {[%emt 0:00:30]} 8. Nf4 {[%emt 0:00:00]} c6 {[%emt 0:00:30]} 9. Bd3 {[%emt 0:00:00]} a5 {[%emt 0:04:30]} 10. O-O {[%emt 0:00:30]} Na6 {[%emt 0:00:30]} 11. f3 {[%emt 0:04:30]} Nc7 {[%emt 0:05:30]} 12. Bc2 {[%emt 0:01:30]} c5 {[%emt 0:03:30]} 13. dxc5 {[%emt 0:07:30]} Bxc5 {[%emt 0:00:30]} 14. Kh1 {[%emt 0:04:30]} d4 {[%emt 0:15:30]} 15. exd4 {[%emt 0:02:30]} Bxd4 {[%emt 0:14:30]} 16. Nfe2 {[%emt 0:03:30]} Be5 {[%emt 0:02:30]} 17. Bf4 {[%emt 0:02:30]} Qe7 {[%emt 0:03:30]} 18. Bxe5 {[%emt 0:04:30]} Qxe5 {[%emt 0:00:00]} 19. Qd4 {[%emt 0:01:30]} 1/2-1/2